bitfinex/quotes_SOLUSD_20241127
["timestamp","ask_amount","ask_price","bid_price","bid_amount"]
[1732670744521,13.51606199,231.02,230.96,19.9287]
[1732670744718,13.51606199,231.0,230.94,6.4068]
[1732670744917,13.51606199,230.98,230.93,4.3301]
[1732670745723,13.51606199,231.02,230.94,13.51606199]
[1732670746517,13.51606199,231.0,230.94,4.3299]
[1732670747510,13.51606199,231.04,230.96,13.51606199]
[1732670748202,13.51606199,231.02,230.94,17.84596199]
[1732670748403,13.51606199,230.98,230.92,4.3303]
[1732670749831,13.51606199,230.98,230.91,15.5991]
[1732670749832,13.51606199,230.98,230.9,4.3308]
[1732670750008,13.51606199,230.96,230.9,4.3308]
[1732670750425,13.51606199,230.94,230.9,4.3308]
[1732670750723,13.51606199,230.94,230.89,6.4068]
[1732670751723,13.51606199,230.96,230.89,10.7378]
[1732670753932,13.51606199,230.96,230.89,6.4068]
[1732670754109,13.51606199,230.96,230.87,4.3312]
[1732670754110,13.51606199,230.92,230.87,4.3312]
[1732670754310,13.51606199,230.92,230.86,15.5991]
[1732670754613,13.51606199,230.88,230.83,6.4068]
[1732670754805,13.51606199,230.86,230.81,4.3323]
[1732670755413,13.51606199,230.86,230.8,15.5991]
[1732670755824,13.51606199,230.86,230.79,4.3327]
[1732670755825,13.51606199,230.86,230.78,6.4068]
[1732670756131,13.51606199,230.86,230.8,4.3327]
[1732670759230,13.51606199,230.88,230.8,4.3327]
[1732670759930,13.51606199,230.86,230.78,10.7397]
[1732670760229,13.51606199,230.84,230.78,6.4068]
[1732670761134,13.51606199,230.84,230.78,10.7398]
[1732670761731,3.0319,230.88,230.74,19.9328]
[1732670761732,13.51606199,230.8,230.74,19.9328]
[1732670761932,13.51606199,230.78,230.72,4.334]
[1732670762230,13.51606199,230.74,230.68,4.335]
[1732670762607,13.51606199,230.72,230.67,21.7125]
[1732670763037,13.51606199,230.7,230.62,19.9653]
[1732670763229,13.51606199,230.66,230.61,6.0831]
[1732670763618,13.51606199,230.68,230.61,10.4193]
[1732670764038,13.51606199,230.7,230.62,13.51606199]
[1732670764335,15.66666347,230.81,230.61,10.4193]
[1732670764336,20.0,230.71,230.64,13.51606199]
[1732670764911,13.51606199,230.74,230.66,13.51606199]
[1732670765332,13.51606199,230.78,230.7,13.51606199]
[1732670766236,13.51606199,230.78,230.7,17.85066199]
[1732670766440,13.51606199,230.78,230.69,19.9641]
[1732670766738,34.0852,230.86,230.69,19.9641]
[1732670766739,13.51606199,230.8,230.69,19.9641]
[1732670766944,13.51606199,230.84,230.76,13.51606199]
[1732670767327,13.51606199,230.86,230.78,13.51606199]
[1732670768439,13.51606199,230.86,230.79,4.3329]
[1732670768638,3.0316,230.9,230.79,4.3329]
[1732670768639,13.51606199,230.9,230.82,13.51606199]
[1732670768936,13.51606199,230.92,230.84,13.51606199]
[1732670769143,13.51606199,230.9,230.81,13.51606199]
[1732670769350,13.51606199,230.86,230.77,4.3331]
[1732670769631,13.51606199,230.84,230.76,17.84936199]
[1732670769939,13.51606199,230.82,230.74,17.84986199]
[1732670770527,13.51606199,230.86,230.78,13.51606199]
[1732670770725,13.51606199,230.9,230.84,13.51606199]
[1732670770919,13.51606199,230.92,230.84,13.51606199]
[1732670771123,13.51606199,230.86,230.78,13.51606199]
[1732670771341,13.51606199,230.84,230.76,13.51606199]
[1732670771545,13.51606199,230.8,230.73,10.417]
[1732670771930,13.51606199,230.78,230.73,10.417]
[1732670772238,13.51606199,230.78,230.73,6.0831]
[1732670772541,13.51606199,230.8,230.73,10.417]
[1732670774022,5.0,230.98,230.79,13.51606199]
[1732670774320,13.51606199,230.89,230.81,13.51606199]
[1732670775045,13.51606199,230.89,230.81,17.84856199]
[1732670775231,13.51606199,230.92,230.83,13.51606199]
[1732670775547,13.51606199,230.9,230.83,13.51606199]
[1732670776242,13.51606199,230.9,230.81,17.84856199]
[1732670776445,13.51606199,230.88,230.81,4.3325]
[1732670777544,13.51606199,230.9,230.82,13.51606199]
[1732670778528,13.51606199,230.88,230.81,4.3325]
[1732670778715,13.51606199,230.9,230.81,4.3325]
[1732670778922,13.51606199,230.9,230.82,13.51606199]
[1732670779633,13.51606199,230.88,230.78,13.51606199]
[1732670779832,13.51606199,230.83,230.75,4.3336]
[1732670780027,13.51606199,230.79,230.73,6.0831]
[1732670780331,13.51606199,230.77,230.73,6.0831]
[1732670780535,13.51606199,230.75,230.69,15.6294]
[1732670781132,13.51606199,230.73,230.69,15.6294]
[1732670781536,13.51606199,230.75,230.69,19.9641]
[1732670781738,13.51606199,230.77,230.69,19.9641]
[1732670782165,13.51606199,230.77,230.7,13.51606199]
[1732670782530,13.51606199,230.79,230.7,13.51606199]
[1732670782766,3.0328,230.81,230.69,19.9641]
[1732670782767,13.51606199,230.81,230.72,13.51606199]
[1732670783146,13.51606199,230.81,230.69,30.8011]
[1732670783147,13.51606199,230.83,230.76,13.51606199]
[1732670783456,5.9312,230.92,230.76,13.51606199]
[1732670783457,20.0,230.82,230.76,13.51606199]
[1732670783650,13.51606199,230.87,230.8,13.51606199]
[1732670783856,13.51606199,230.89,230.8,13.51606199]
[1732670784363,21.64976577,230.9,230.81,21.64976577]
[1732670784548,21.64976577,230.92,230.83,21.64976577]
[1732670784865,21.64976577,230.9,230.81,28.09706577]
[1732670785158,21.64976577,230.9,230.83,21.64976577]
[1732670785654,21.64976577,230.92,230.85,21.64976577]
[1732670785856,21.64976577,230.92,230.83,38.07446577]
[1732670786069,21.64976577,230.9,230.83,38.07446577]
[1732670786358,21.64976577,230.9,230.84,4.332]
[1732670787356,21.64976577,230.88,230.83,16.4247]
[1732670787562,21.64976577,230.88,230.81,10.7797]
[1732670787742,21.64976577,230.88,230.81,6.4473]
[1732670787946,23.776884,230.89,230.81,6.4473]
[1732670787947,21.64976577,230.86,230.81,6.4473]
[1732670788340,21.64976577,230.82,230.76,6.4473]
[1732670788561,24.68156577,230.88,230.76,6.4473]
[1732670788562,21.64976577,230.8,230.76,6.4473]
[1732670788747,21.64976577,230.78,230.72,4.3341]
[1732670790940,21.64976577,230.8,230.72,4.3341]
[1732670792467,21.64976577,230.8,230.73,21.64976577]
[1732670792682,23.776884,230.89,230.72,4.3341]
[1732670792683,21.64976577,230.86,230.79,21.64976577]
[1732670792970,21.64976577,230.88,230.79,21.64976577]
[1732670793149,21.64976577,230.88,230.72,16.6697]
[1732670793150,21.64976577,230.9,230.81,21.64976577]
[1732670793961,21.64976577,230.9,230.84,4.332]
[1732670799578,21.64976577,230.9,230.83,4.3321]
[1732670799785,21.64976577,230.86,230.82,6.0213]
[1732670799967,21.64976577,230.84,230.77,10.3546]
[1732670800286,21.64976577,230.82,230.77,6.0213]
[1732670800582,21.64976577,230.78,230.72,4.3342]
[1732670801669,21.64976577,230.8,230.72,25.98396577]
[1732670803561,21.64976577,230.82,230.72,25.98396577]
[1732670804680,21.64976577,230.8,230.72,25.98396577]
[1732670806574,24.68266577,230.8,230.72,4.3342]
[1732670806779,21.64976577,230.8,230.72,4.3342]
[1732670807080,21.64976577,230.8,230.72,25.98396577]
[1732670808076,21.64976577,230.78,230.71,22.446]
[1732670808280,13.54558083,230.78,230.71,22.446]
[1732670808790,3.0326,230.82,230.71,6.0213]
[1732670808791,13.54558083,230.76,230.71,6.0213]
[1732670809009,13.54558083,230.74,230.71,6.0213]
[1732670809179,13.54558083,230.74,230.66,4.3352]
[1732670809567,13.54558083,230.72,230.66,4.3352]
[1732670809766,13.54558083,230.74,230.66,4.3352]
[1732670810274,21.67690189,230.75,230.67,21.67690189]
[1732670810877,3.0333,230.77,230.65,21.578]
[1732670810878,21.67690189,230.73,230.65,43.25490189]
[1732670811061,21.67690189,230.71,230.65,21.578]
[1732670812177,21.67690189,230.71,230.65,6.0213]
[1732670812363,21.67690189,230.69,230.65,6.0213]
[1732670812563,21.67690189,230.69,230.61,4.3362]
[1732670813070,21.67690189,230.67,230.6,6.0213]
[1732670814563,21.67690189,230.67,230.6,10.3577]
[1732670815065,24.71150189,230.67,230.6,6.0213]
[1732670815789,24.71150189,230.67,230.53,10.8444]
[1732670815790,20.0,230.62,230.55,21.67690189]
[1732670815964,21.67690189,230.61,230.54,10.3588]
[1732670816165,21.67690189,230.61,230.54,6.0213]
[1732670816576,24.71230189,230.61,230.54,6.0213]
[1732670817091,21.67690189,230.57,230.54,6.0213]
[1732670817288,21.67690189,230.55,230.51,0.5204]
[1732670818282,21.67690189,230.57,230.51,0.5204]
[1732670818487,21.67690189,230.55,230.51,0.5204]
[1732670818690,3.0354,230.61,230.51,0.5204]
[1732670818691,21.67690189,230.53,230.51,0.5204]
[1732670821595,20.0,230.54,230.51,0.5204]
[1732670822076,21.67690189,230.53,230.51,0.5204]
[1732670822276,20.0,230.54,230.51,0.5204]
[1732670823293,21.67690189,230.53,230.51,0.5204]
[1732670824000,23.776884,230.52,230.51,0.5204]
[1732670824168,48.49038589,230.52,230.39,21.76173801]
[1732670824374,21.67690189,230.42,230.39,0.08483612]
[1732670824697,41.67690189,230.4,230.39,0.08483612]
[1732670825195,92.13068778,230.4,230.39,0.08483612]
[1732670825401,43.776884,230.39,230.28,0.520458]
[1732670825592,21.67690189,230.3,230.28,0.520458]
[1732670825901,21.67690189,230.29,230.28,0.520458]
[1732670826472,45.45378589,230.29,230.28,0.520458]
[1732670827571,67.13068778,230.29,230.28,0.520458]
[1732670828100,45.45378589,230.29,230.28,0.520458]
[1732670829199,50.45378589,230.29,230.28,0.520458]
[1732670829380,45.45378589,230.29,230.28,0.520458]
[1732670830479,45.45378589,230.29,230.13,6.5727]
[1732670830480,20.0,230.26,230.13,6.5727]
[1732670830684,5.0,230.27,230.13,6.5727]
[1732670830685,21.67690189,230.19,230.13,6.5727]
[1732670832271,3.0406,230.22,230.13,6.5727]
[1732670832473,23.776884,230.2,230.13,6.5727]
[1732670832990,21.67690189,230.21,230.13,6.5727]
[1732670833207,21.67690189,230.23,230.16,21.67690189]
[1732670833404,21.67690189,230.23,230.14,21.67690189]
[1732670833708,41.67690189,230.25,230.16,21.67690189]
[1732670833878,41.67690189,230.25,230.18,21.67690189]
[1732670834074,41.67690189,230.25,230.16,21.67690189]
[1732670834279,21.67690189,230.23,230.14,21.67690189]
[1732670834504,20.0,230.25,230.13,6.5727]
[1732670834505,21.67690189,230.19,230.13,6.5727]
[1732670836504,21.67690189,230.21,230.13,6.5727]
[1732670837203,23.776884,230.2,230.13,6.5727]
[1732670837406,21.67690189,230.19,230.13,6.5727]
[1732670837996,23.776884,230.18,230.13,6.5727]
[1732670838201,21.67690189,230.15,230.07,6.64949445]
[1732670838406,23.776884,230.18,229.93,0.2]
[1732670838407,21.67690189,230.1,229.93,0.2]
[1732670838575,21.67690189,230.1,229.82,0.520458]
[1732670838576,21.67690189,230.1,230.02,21.67690189]
[1732670839505,41.67690189,230.12,230.04,21.67690189]
[1732670839812,20.0,230.11,230.06,21.67690189]
[1732670840109,21.67690189,230.16,230.08,21.67690189]
[1732670840296,20.0,230.13,230.08,21.67690189]
[1732670840605,27.252384,230.18,230.1,21.67690189]
[1732670840606,20.0,230.15,230.1,21.67690189]
[1732670840778,21.67690189,230.2,230.12,21.67690189]
[1732670841583,21.67690189,230.2,230.12,26.02230189]
[1732670841795,3.4749,230.22,230.12,26.02230189]
[1732670841796,21.67690189,230.24,230.16,21.67690189]
[1732670842302,21.67690189,230.24,230.12,4.3454]
[1732670842303,3.4739,230.29,230.19,21.67690189]
[1732670842483,21.67690189,230.27,230.19,21.67690189]
[1732670842988,3.4739,230.29,230.21,21.67690189]
[1732670842989,21.67690189,230.29,230.21,21.67690189]
[1732670843196,21.67690189,230.29,230.12,15.2092]
[1732670843197,21.67690189,230.31,230.23,21.67690189]
[1732670843391,25.15020189,230.33,230.23,21.67690189]
[1732670843580,21.67690189,230.31,230.23,21.67690189]
[1732670843879,21.67690189,230.33,230.25,21.67690189]
[1732670844083,21.67690189,230.37,230.29,21.67690189]
[1732670844477,21.67690189,230.39,230.31,21.67690189]
[1732670845092,21.67690189,230.37,230.29,21.67690189]
[1732670845583,21.67690189,230.37,230.29,26.01910189]
[1732670846110,30.0,230.3,230.26,6.38]
[1732670846278,30.0,230.3,230.26,10.7228]
[1732670846479,30.0,230.3,230.27,21.67690189]
[1732670846781,30.0,230.3,230.26,10.7228]
[1732670847410,30.0,230.3,230.26,6.38]
[1732670847607,30.0,230.3,230.24,4.3431]
[1732670848305,30.0,230.3,230.23,21.67690189]
[1732670848497,30.0,230.3,230.23,26.02030189]
[1732670850814,30.0,230.3,230.29,21.67690189]
[1732670851301,21.67690189,230.46,230.29,21.67690189]
[1732670851510,6.369,230.49,230.28,26.87690189]
[1732670851511,21.67690189,230.44,230.34,21.67690189]
[1732670851809,21.67690189,230.38,230.3,21.67690189]
[1732670852193,21.67690189,230.42,230.34,21.67690189]
[1732670852399,21.67690189,230.44,230.36,21.67690189]
[1732670852592,23.776884,230.43,230.36,21.67690189]
[1732670852987,21.67690189,230.37,230.22,4.3435]
[1732670853285,21.67690189,230.3,230.22,4.3435]
[1732670853484,23.776884,230.33,230.25,21.67690189]
[1732670855097,23.776884,230.33,230.25,26.01990189]
[1732670856014,23.776884,230.33,230.2,6.38]
[1732670856015,21.67690189,230.3,230.23,4.3434]
[1732670856211,23.776884,230.27,230.2,6.38]
[1732670856419,23.776884,230.27,230.16,16.506]
[1732670856420,23.776884,230.25,230.17,21.67690189]
[1732670856595,21.67690189,230.22,230.15,21.67690189]
[1732670857012,21.67690189,230.19,230.11,21.67690189]
[1732670857195,23.776884,230.18,230.11,21.67690189]
[1732670858198,23.776884,230.18,230.11,26.02250189]
[1732670858720,21.67690189,230.21,230.13,21.67690189]
[1732670858894,23.776884,230.2,230.13,21.67690189]
[1732670859804,21.67690189,230.25,230.15,21.67690189]
[1732670860012,21.67690189,230.25,230.11,4.3456]
[1732670860013,20.0,230.22,230.17,21.67690189]
[1732670862027,20.0,230.22,230.17,26.02140189]
[1732670862592,21.67690189,230.25,230.17,26.02140189]
[1732670863314,23.776884,230.24,230.17,26.02140189]
[1732670864125,3.4744,230.26,230.17,26.02140189]
[1732670864126,23.776884,230.26,230.17,26.02140189]
[1732670865118,23.776884,230.24,230.17,4.3445]
[1732670865326,21.67690189,230.23,230.15,26.02170189]
[1732670865620,23.776884,230.22,230.15,26.02170189]
[1732670865827,23.776884,230.22,230.13,21.67690189]
[1732670865828,21.67690189,230.21,230.13,21.67690189]
[1732670865998,23.776884,230.2,230.13,21.67690189]
[1732670866197,23.776884,230.2,230.13,26.02220189]
[1732670866727,52.33028459,230.54,230.15,21.67690189]
[1732670866728,21.67690189,230.25,230.15,21.67690189]
[1732670866901,15.4881,230.37,230.19,21.67690189]
[1732670866902,21.67690189,230.27,230.19,21.67690189]
[1732670867221,23.776884,230.26,230.19,21.67690189]
[1732670868104,23.776884,230.26,230.2,4.344]
[1732670868418,21.67690189,230.27,230.21,21.67690189]
[1732670868625,16.0003,230.43,230.25,21.67690189]
[1732670868796,21.67690189,230.39,230.29,21.67690189]
[1732670869003,21.67690189,230.35,230.25,21.67690189]
[1732670869628,21.67690189,230.35,230.27,21.67690189]
[1732670870215,23.776884,230.34,230.27,21.67690189]
[1732670870623,23.776884,230.34,230.27,26.01950189]
[1732670873811,8.6798,230.42,230.31,21.67690189]
[1732670873812,21.67690189,230.39,230.31,21.67690189]
[1732670875020,21.67690189,230.39,230.31,26.01880189]
[1732670875198,21.67690189,230.39,230.29,21.67690189]
[1732670875397,21.67690189,230.37,230.29,26.01910189]
[1732670875703,23.776884,230.36,230.29,26.01910189]
[1732670876202,23.776884,230.38,230.29,26.01910189]
[1732670876515,23.776884,230.38,230.31,21.67690189]
[1732670877513,23.776884,230.38,230.31,26.01860189]
[1732670878518,23.776884,230.38,230.31,4.3417]
[1732670880910,21.67690189,230.37,230.29,21.67690189]
[1732670881112,21.67690189,230.35,230.27,21.67690189]
[1732670881308,23.776884,230.34,230.25,26.02000189]
[1732670881510,21.67690189,230.37,230.29,21.67690189]
[1732670881825,20.0,230.4,230.31,21.67690189]
[1732670882024,20.0,230.4,230.33,21.67690189]
[1732670882229,20.0,230.4,230.34,4.3414]
[1732670882427,21.67690189,230.38,230.3,4.3421]
[1732670883320,21.67690189,230.38,230.31,21.67690189]
[1732670883707,21.67690189,230.4,230.31,21.67690189]
[1732670884323,21.67690189,230.4,230.32,4.3417]
[1732670885419,18.00317608,230.48,230.32,4.3417]
[1732670885420,21.67690189,230.46,230.37,21.67690189]
[1732670886125,21.67690189,230.46,230.36,6.1675]
[1732670886126,21.67690189,230.48,230.39,21.67690189]
[1732670886309,3.4707,230.5,230.42,21.67690189]
[1732670886310,21.67690189,230.5,230.42,21.67690189]
[1732670887026,3.4705,230.52,230.36,6.1675]
[1732670887027,21.67690189,230.48,230.4,21.67690189]
[1732670887404,21.67690189,230.46,230.38,21.67690189]
[1732670887704,21.67690189,230.46,230.37,4.3408]
[1732670887930,21.67690189,230.44,230.37,4.3408]
[1732670888315,21.67690189,230.42,230.36,6.1675]
[1732670888501,21.67690189,230.38,230.3,27.84440189]
[1732670889124,21.67690189,230.38,230.3,32.18640189]
[1732670889527,21.67690189,230.4,230.3,32.18640189]
[1732670889714,21.67690189,230.42,230.34,21.67690189]
[1732670889912,23.776884,230.43,230.36,21.67690189]
[1732670890227,21.67690189,230.44,230.36,21.67690189]
[1732670890434,23.776884,230.45,230.36,21.67690189]
[1732670890806,23.776884,230.45,230.38,21.67690189]
[1732670891007,21.67690189,230.5,230.41,21.67690189]
[1732670891214,21.67690189,230.5,230.43,21.67690189]
[1732670891617,21.67690189,230.5,230.43,26.01640189]
[1732670892035,21.67690189,230.47,230.41,4.3399]
[1732670893218,21.67690189,230.47,230.39,21.67690189]
[1732670893412,21.67690189,230.47,230.39,26.01720189]
[1732670893613,23.776884,230.48,230.41,21.67690189]
[1732670894232,21.67690189,230.49,230.41,21.67690189]
[1732670894534,21.67690189,230.51,230.43,21.67690189]
[1732670895309,21.67690189,230.51,230.44,4.3395]
[1732670895816,21.67690189,230.53,230.44,4.3395]
[1732670896017,21.67690189,230.53,230.45,21.67690189]
[1732670896637,23.776884,230.52,230.45,21.67690189]
[1732670897329,21.67690189,230.51,230.44,4.3395]
[1732670897836,23.776884,230.53,230.47,21.67690189]
[1732670898451,12.19929278,230.54,230.51,21.67690189]
[1732670898825,12.19929278,230.54,230.53,28.03930189]
[1732670899337,12.19929278,230.54,230.53,32.37710189]
[1732670899542,12.19929278,230.54,230.53,10.7002]
[1732670904427,22.19735989,230.62,230.53,10.7002]
[1732670904622,0.520458,230.62,230.55,21.67690189]
[1732670904953,0.520458,230.62,230.56,4.3372]
[1732670905519,0.520458,230.62,230.55,21.67690189]
[1732670905520,22.19735989,230.62,230.54,4.3375]
[1732670906525,22.19735989,230.62,230.55,21.67690189]
[1732670907030,22.19735989,230.62,230.57,21.67690189]
[1732670907031,0.520458,230.62,230.57,21.67690189]
[1732670908335,0.520458,230.62,230.57,13.55904932]
[1732670909548,0.520458,230.62,230.54,15.1814]
[1732670909549,0.520458,230.62,230.55,13.55904932]
[1732670910454,0.520458,230.62,230.56,4.3372]
[1732670911622,0.520458,230.62,230.57,13.55904932]
[1732670912335,0.520458,230.62,230.6,4.3365]
[1732670912549,0.520458,230.62,230.61,13.55904932]
[1732670913055,0.520458,230.62,230.6,4.3365]
[1732670914726,0.520458,230.62,230.61,13.55904932]
[1732670915454,0.520458,230.62,230.6,4.3365]
[1732670916056,0.520458,230.62,230.54,0.2]
[1732670916239,0.520458,230.62,230.56,20.0]
[1732670916436,0.520458,230.62,230.55,13.55904932]
[1732670917131,0.520458,230.62,230.56,4.3372]
[1732670917644,0.520458,230.62,230.54,4.3376]
[1732670917645,13.55904932,230.61,230.54,4.3376]
[1732670917845,13.55904932,230.57,230.52,4.3379]
[1732670918037,13.55904932,230.57,230.5,4.3382]
[1732670918234,23.776884,230.56,230.5,4.3382]
[1732670918437,13.55904932,230.55,230.5,4.3382]
[1732670918860,13.55904932,230.57,230.5,4.3382]
[1732670920061,33.55904932,230.61,230.51,13.55904932]
[1732670920241,13.55904932,230.59,230.51,13.55904932]
[1732670921251,13.55904932,230.59,230.52,4.338]
[1732670923476,0.520458,230.62,230.55,13.55904932]
[1732670923642,0.520458,230.62,230.59,13.55904932]
[1732670923961,0.520458,230.62,230.61,13.55904932]
[1732670924955,0.520458,230.62,230.61,17.89534932]
[1732670926255,0.520458,230.62,230.61,26.02476439]
[1732670927368,0.520458,230.62,230.61,4.3363]
[1732670928347,0.520458,230.62,230.57,4.3369]
[1732670928771,0.520458,230.62,230.57,26.02536439]
[1732670928955,0.520458,230.62,230.59,21.68846439]
[1732670929164,0.520458,230.62,230.6,4.3365]
[1732670929849,0.520458,230.62,230.61,21.68846439]
[1732670931567,0.520458,230.62,230.61,26.02476439]
[1732670933254,5.8e-05,230.62,230.61,26.02476439]
[1732670933766,5.8e-05,230.62,230.61,31.02476439]
[1732670934081,12.19252929,230.67,230.64,20.0]
[1732670934371,8.35292929,230.67,230.66,41.68846439]
[1732670935359,8.35292929,230.67,230.66,46.02376439]
[1732670936461,8.35292929,230.67,230.63,21.68846439]
[1732670937449,8.35292929,230.67,230.65,21.68846439]
[1732670939653,8.35292929,230.67,230.66,4.3353]
[1732670940293,6.05852929,230.67,230.66,4.3353]
[1732670941677,2.929e-05,230.67,230.66,4.3353]
[1732670942374,15.7098,230.83,230.7,25.0]
[1732670942597,0.520458,230.85,230.8,21.68846439]
[1732670942748,0.520458,230.85,230.82,21.68846439]
[1732670943348,0.520458,230.85,230.8,21.68846439]
[1732670943554,0.520458,230.85,230.81,4.3325]
[1732670945954,0.520458,230.85,230.79,4.3328]
[1732670948379,21.68846439,230.84,230.76,21.68846439]
[1732670948591,0.520458,230.85,230.78,21.68846439]
[1732670948877,24.297342,230.85,230.76,21.68846439]
[1732670949055,21.68846439,230.84,230.76,21.68846439]
[1732670949452,0.520458,230.85,230.78,21.68846439]
[1732670949869,0.520458,230.85,230.79,4.3329]
[1732670951775,24.297342,230.85,230.76,21.68846439]
[1732670952476,0.520458,230.85,230.76,21.68846439]
[1732670952649,0.520458,230.85,230.75,4.3336]
[1732670952650,0.520458,230.85,230.78,21.68846439]
[1732670953758,0.520458,230.85,230.8,21.68846439]
[1732670953954,0.520458,230.85,230.81,4.3325]
[1732670956168,21.68846439,230.84,230.76,21.68846439]
[1732670956370,13.53713344,230.84,230.76,17.87063344]
[1732670958475,13.53713344,230.8,230.75,0.2]
[1732670959082,13.53713344,230.8,230.72,4.3341]
[1732670960087,13.53713344,230.78,230.72,4.3341]
[1732670961585,29.65473344,230.82,230.73,13.53713344]
[1732670962091,16.1176,230.82,230.77,13.53713344]
[1732670962262,0.520458,230.85,230.79,13.53713344]
[1732670963394,0.520458,230.85,230.8,4.3327]
[1732670964466,0.520458,230.85,230.77,13.53713344]
[1732670964667,0.520458,230.85,230.78,4.3331]
[1732670964668,13.53713344,230.84,230.78,4.3331]
[1732670965473,13.53713344,230.84,230.75,13.53713344]
[1732670965676,13.53713344,230.82,230.73,17.87113344]
[1732670965969,23.776884,230.81,230.73,17.87113344]
[1732670967579,13.53713344,230.84,230.77,13.53713344]
[1732670969490,13.53713344,230.84,230.78,4.3331]
[1732670969866,13.53713344,230.84,230.75,13.53713344]
[1732670970060,13.53713344,230.84,230.76,4.3333]
[1732670970584,13.53713344,230.82,230.76,4.3333]
[1732670970998,13.53713344,230.84,230.76,4.3333]
[1732670971166,13.53713344,230.84,230.77,13.53713344]
[1732670971484,13.53713344,230.84,230.78,4.3331]
[1732670971677,0.520458,230.85,230.78,4.3331]
[1732670972091,0.520458,230.85,230.83,13.53713344]
[1732670973499,0.520458,230.85,230.84,4.332]
[1732670985376,0.520458,230.85,230.82,4.3322]
[1732670985576,14.05759144,230.85,230.8,4.3326]
[1732670985772,13.53713344,230.83,230.78,4.333]
[1732670985976,13.53713344,230.81,230.76,4.3333]
[1732670987376,13.53713344,230.81,230.76,20.0]
[1732670987576,13.53713344,230.83,230.76,20.0]
[1732670987792,14.05759144,230.85,230.77,13.53713344]
[1732670987992,13.53713344,230.83,230.76,20.0]
[1732670988580,13.53713344,230.83,230.74,4.3338]
[1732670990808,13.53713344,230.81,230.74,4.3338]
[1732670991400,23.776884,230.8,230.73,33.53713344]
[1732670991697,23.776884,230.8,230.73,37.87113344]
[1732670993008,23.776884,230.8,230.73,17.87113344]
[1732670993188,13.53713344,230.79,230.73,4.334]
[1732670994488,23.776884,230.8,230.66,26.0466]
[1732670994489,13.53713344,230.77,230.69,33.53713344]
[1732670994694,13.53713344,230.77,230.7,20.0]
[1732670995202,13.53713344,230.79,230.71,13.53713344]
[1732670996613,13.53713344,230.79,230.72,4.3342]
[1732670997305,13.53713344,230.77,230.69,13.53713344]
[1732670997514,13.53713344,230.75,230.66,20.0]
[1732670997703,13.53713344,230.73,230.65,13.53713344]
[1732670998198,13.53713344,230.71,230.64,4.3357]
[1732670998805,23.776884,230.7,230.64,4.3357]
[1732670999811,13.53713344,230.73,230.65,13.53713344]
[1732671000199,13.53713344,230.71,230.64,4.3357]
[1732671001589,13.53713344,230.69,230.64,4.3357]
[1732671002498,13.53713344,230.69,230.6,4.3365]
[1732671002499,23.776884,230.68,230.6,4.3365]
[1732671002790,13.53713344,230.69,230.6,4.3365]
[1732671002791,13.53713344,230.69,230.61,13.53713344]
[1732671002990,23.776884,230.7,230.65,13.53713344]
[1732671003191,28.87643344,230.75,230.67,13.53713344]
[1732671003692,13.53713344,230.73,230.65,13.53713344]
[1732671003892,13.53713344,230.73,230.63,13.53713344]
[1732671004113,13.53713344,230.73,230.65,13.53713344]
[1732671004722,13.53713344,230.71,230.64,4.3357]
[1732671004923,13.53713344,230.69,230.61,13.53713344]
[1732671005218,13.53713344,230.69,230.6,11.0412]
[1732671005219,13.53713344,230.65,230.6,4.3365]
[1732671005427,23.776884,230.64,230.58,4.3367]
[1732671005594,13.53713344,230.61,230.56,4.337]
[1732671005800,13.53713344,230.61,230.54,4.3374]
[1732671006100,23.776884,230.62,230.52,4.3378]
[1732671006101,13.53713344,230.59,230.52,4.3378]
[1732671006318,23.776884,230.62,230.53,13.53713344]
[1732671006319,25.73093277,230.61,230.53,13.53713344]
[1732671006701,12.19379933,230.61,230.54,4.3376]
[1732671006906,12.19379933,230.61,230.55,13.53713344]
[1732671007111,25.73093277,230.61,230.54,4.3376]
[1732671007596,23.776884,230.6,230.54,4.3376]
[1732671007794,23.776884,230.6,230.5,10.8457]
[1732671007795,13.53713344,230.59,230.5,13.53713344]
[1732671008112,13.53713344,230.57,230.5,13.53713344]
[1732671008805,13.53713344,230.57,230.51,4.3382]
[1732671009011,23.776884,230.6,230.54,13.53713344]
[1732671009202,12.19379933,230.61,230.56,13.53713344]
[1732671009389,12.19379933,230.61,230.58,13.53713344]
[1732671009595,12.19379933,230.61,230.6,13.53713344]
[1732671010821,12.19379933,230.61,230.6,17.87363344]